Cogmind - Beta 13 @@@ ROGUE MODE // 2024.05.04 @ 14:37:59 Player: Fazzonamite Result: Destroyed by P-70 Sage with Tesla Rifle Performance ------------- Evolutions (5) 2500 Regions Visited (14) 2800 Robots Destroyed (90) 450 Value Destroyed (3406) 3406 Prototype IDs (34) 680 Alien Tech Used (0) 0 Bonus (925) 925 TOTAL SCORE: 10761 Bonus ------- High Alert Combat Kills 262 Follower Combat Kills 164 Aligned with FarCom 300 Met Data Miner 300 Friendly Fire -101 Cogmind --------- Core Integrity 0/1000 Matter 265/300 Energy 100/100 System Corruption 7% Temperature Cool (0) Movement Walking (90) Location -5/Factory Parts ------- > --- POWER (1) -------- (None) > --- PROPULSION (4) --- VSS Leg > --- UTILITY (9) ------ Advanced Signal Interpreter Melee Analysis Suite > --- WEAPON (3) ------- Ionic Axe > --- INVENTORY (5) ---- Nuclear Pulse Thruster Cooled Nuclear Pulse Thruster Weapon Cycler Tesla Rifle Peak State ------------ > --- POWER ------------ Improved Ion Engine > --- PROPULSION ------- Medium Treads Compact Wheel Compact Wheel Armored Wheel > --- UTILITY ---------- Cryofiber Web Large Storage Unit Improved Trap Scanner Improved Trap Scanner Triangulator Advanced Signal Interpreter Advanced Targeting Computer Improved Light Armor Plating Trap Reconfigurator > --- WEAPON ----------- Heavy Rocket Launcher Mace Chainsword > --- INVENTORY -------- Light Ion Engine Light Nuclear Core Improved Deuterium Engine Nuclear Pulse Thruster Cooled Nuclear Pulse Thruster High-capacity Matter Pod Weapon Cycler Transmission Jammer Hardened Medium Armor Plating Hardened Medium Armor Plating Gatling Laser Heavy Phase Cannon Gauss Rifle Coil Gun Improved Datajack [Rating: 64] Favorites ----------- Power Ion Engine Engine Ion Engine Power Core Light Nuclear Core Propulsion Wheel Treads Light Treads Leg Aluminum Leg Wheel Wheel Utility Large Storage Unit Device Trap Reconfigurator Storage Large Storage Unit Processor Signal Interpreter Hackware System Shield Protection Improved Light Armor Plating Weapon Gauss Rifle Energy Gun Medium Laser Energy Cannon Beam Cannon Ballistic Gun Gauss Rifle Ballistic Cannon Gauss Cannon Launcher Grenade Launcher Impact Weapon Mace Slashing Weapon Chainsword Piercing Weapon Spear Special Melee Weapon Improved Datajack Build | -11 -10 -10 -9 -9 -9 -8 -8 -7 -6 -6 -6 -6 -5 -5 ------- Run | Yrd Mat Min Mat Min Exi Min Mat Fac Fac Low Low Dat Pro Fac Slots Evolved 10 | . . . 2 . . . 2 2 2 . . . . 2 Power . | . . . . . . . . . . . . . . . Propulsion 2 | . . . . . . . 1 . 1 . . . . . Utility 7 | . . . 2 . . . 1 1 1 . . . . 2 Weapon 1 | . . . . . . . . 1 . . . . . . Parts Attached 112 | 6 12 1 6 1 . . 8 15 12 11 5 . 1 34 Power 12 | 1 1 . . . . . . 2 1 1 . . . 6 Engine 8 | 1 1 . . . . . . 2 . 1 . . . 3 Core 4 | . . . . . . . . . 1 . . . . 3 Reactor . | . . . . . . . . . . . . . . . Propulsion 27 | 2 2 . 2 . . . 2 4 1 3 2 . . 9 Treads 4 | . . . . . . . . . . 1 1 . . 2 Leg 7 | . 2 . . . . . . . . . . . . 5 Wheel 16 | 2 . . 2 . . . 2 4 1 2 1 . . 2 Hover . | . . . . . . . . . . . . . . . Flight . | . . . . . . . . . . . . . . . Utility 28 | 1 4 1 2 . . . 4 4 5 1 . . . 6 Device 7 | . 1 . 1 . . . 1 . 3 . . . . 1 Storage 3 | 1 1 1 . . . . . . . . . . . . Processor 6 | . 1 . . . . . 1 1 1 . . . . 2 Hackware 1 | . . . . . . . . 1 . . . . . . Protection 11 | . 1 . 1 . . . 2 2 1 1 . . . 3 Artifact . | . . . . . . . . . . . . . . . Weapon 45 | 2 5 . 2 1 . . 2 5 5 6 3 . 1 13 Energy Gun 8 | 2 1 . . . . . . 1 . . 1 . . 3 Energy Cannon 3 | . 2 . . . . . . . . . . . . 1 Ballistic Gun 10 | . 1 . 1 . . . 2 . 2 2 2 . . . Ballistic Cannon 4 | . . . . . . . . 2 1 1 . . . . Launcher 8 | . 1 . 1 1 . . . 1 . 1 . . 1 2 Special Weapon . | . . . . . . . . . . . . . . . Impact Weapon 4 | . . . . . . . . . . 1 . . . 3 Slashing Weapon 5 | . . . . . . . . 1 1 1 . . . 2 Piercing Weapon 1 | . . . . . . . . . . . . . . 1 Special Melee Weapon 2 | . . . . . . . . . 1 . . . . 1 Unidentified Prototypes 1 | . . . . . . . . . . . . . . 1 Parts Lost 46 | . 1 . . . . . 1 7 . 7 2 . 1 27 Power 6 | . . . . . . . . 1 . 1 . . . 4 Propulsion 15 | . 1 . . . . . . 1 . 4 . . 1 8 Utility 10 | . . . . . . . . 1 . 1 . . . 8 Weapon 15 | . . . . . . . 1 4 . 1 2 . . 7 Highest Loss Streak 13 | . 1 . . . . . 1 2 . 3 2 . 1 13 To Critical Strikes . | . . . . . . . . . . . . . . . Average Slot Usage (%) 90 | . 98 100 99 100 100 100 95 92 89 85 97 100 94 74 Engine 7 | . 14 14 11 11 11 11 9 6 2 5 6 6 6 3 Treads 2 | . . . . . . . . . . . 10 13 13 4 Leg 4 | . 17 28 4 . . . . . . . . . . 4 Wheel 12 | . 10 . 17 22 22 22 23 19 20 13 12 13 7 5 Device 14 | . 5 . 11 11 11 11 11 7 14 26 26 26 26 16 Storage 7 | . 14 14 11 11 11 11 9 7 6 6 6 6 6 4 Processor 9 | . 6 14 11 11 11 11 9 9 10 6 6 6 6 12 Hackware 1 | . . . . . . . . 7 4 . . . . . Protection 6 | . 1 . 11 11 11 11 15 12 6 5 6 6 6 2 Energy Gun 4 | . 15 14 11 11 11 11 4 3 . . 2 6 1 1 Ballistic Gun 6 | . . 14 10 3 . . 9 5 8 7 12 13 13 1 Ballistic Cannon 2 | . . . . . . . . 5 5 3 3 . . . Launcher 2 | . . . . 7 11 11 4 3 . 3 . . 4 1 Impact Weapon 1 | . . . . . . . . . . 1 . . . 6 Naked Turns . | . . . . . . . . . . . . . . . Heaviest Build 56 | 12 20 29 34 34 34 34 36 46 54 56 52 49 52 52 Greatest Support 70 | 20 20 20 22 22 22 22 38 40 52 52 22 22 22 70 Greatest Overweight (x) 10 | . 1 1 1 1 1 1 1 3 1 4 4 2 4 10 Average Overweight (x) 1 | . . . 1 1 1 1 . . . 2 2 2 3 . Largest Inventory Capacity 15 | 8 10 15 15 15 15 15 15 15 15 15 15 15 15 15 Average Capacity 14 | 6 8 14 15 15 15 15 15 15 15 15 15 15 15 14 Most Carried 15 | 4 10 12 14 14 15 15 15 15 15 15 15 14 14 15 Average Carried 13 | 1 7 11 11 14 14 15 14 14 14 13 13 14 14 13 Final Capacity 15 | 8 10 15 15 15 15 15 15 15 15 15 15 15 15 5 Final Carried 15 | 1 10 12 14 14 15 15 13 14 15 14 14 14 14 4 Class Distribution -------------------- 50% | Mutant 12% | Tank 11% | Gunner 9% | Scavenger-Gunner 6% | Gladiator 4% | Scavenger-Mutant Dominant Class ---------------- Mutant | -10/Materials Mutant | -10/Mines Mutant | -9/Materials Mutant | -9/Mines Mutant | -9/Exiles Mutant | -8/Mines Mutant | -8/Materials Tank | -7/Factory Skirmisher | -6/Factory Gunner | -6/Lower Caves Scavenger-Gunner | -6/Lower Caves Scavenger-Gunner | -6/Data Miner Scavenger-Gunner | -5/Proximity Caves Gladiator | -5/Factory Resources | -11 -10 -10 -9 -9 -9 -8 -8 -7 -6 -6 -6 -6 -5 -5 ----------- Run | Yrd Mat Min Mat Min Exi Min Mat Fac Fac Low Low Dat Pro Fac Matter Collected 2503 | 201 171 145 190 25 . . 155 330 187 462 156 . 70 411 Remotely . | . . . . . . . . . . . . . . . Salvage Created 3085 | . 360 18 107 86 . . 179 554 172 259 260 . 116 974 Parts 137 | . 23 1 8 2 . . 8 29 8 7 14 . 2 35 Haulers Intercepted . | . . . . . . . . . . . . . . . Recyclers Shooed 2 | . . . . . . . . . . . . . . 2 Parts Field Recycled . | . . . . . . . . . . . . . . . Retrieved Matter . | . . . . . . . . . . . . . . . Parts Self-Destructed 24 | . . . . . . . . . . 8 14 . 2 . Prevented 3 | . . . . . . . . . . 3 . . . . Kills | -11 -10 -10 -9 -9 -9 -8 -8 -7 -6 -6 -6 -6 -5 -5 ------- Run | Yrd Mat Min Mat Min Exi Min Mat Fac Fac Low Low Dat Pro Fac Combat Hostiles Destroyed 74 | . 6 1 5 2 . . 2 14 3 4 8 . 4 25 Melee 10 | . . . . . . . . 1 . . . . . 9 Guns 29 | . 2 1 3 2 . . 2 5 2 2 8 . 1 1 Cannons 9 | . 4 . . . . . . 4 1 . . . . . AOE 21 | . . . 2 . . . . 3 . 2 . . 3 11 Classes Destroyed 10 | . 3 1 . . . . 3 1 . 1 . . 1 . Worker 7 | . 1 . 1 . . . . 1 1 . . . . 3 Recycler 3 | . . . . . . . 1 1 . . . . . 1 Minesweeper 1 | . . . . . . . . . . 1 . . . . Drone 1 | . . . . . . . . . . . . . 1 . Watcher 5 | . 3 . . . . . . . . . . . . 2 Swarmer 29 | . . 1 3 . . . . 6 . . 6 . . 13 Grunt 26 | . 6 . 2 2 . . . 2 . 3 1 . 3 7 Sentry 7 | . . . . . . . 1 3 1 . 1 . . 1 Hunter 4 | . . . . . . . 1 1 2 . . . . . Programmer 7 | . . . . . . . . 2 . 1 . . . 4 Decomposer 4 | . . . . . . . . . . 4 . . . . Best Kill Streak 8 | . 2 1 6 2 . . 2 4 2 2 3 . 3 8 Combat Bots Only 8 | . 2 1 5 2 . . 2 3 2 2 3 . 3 8 Max Kills in Single Turn 4 | . 1 1 3 1 . . 1 2 1 1 3 . 1 4 Gunslinging 2 | . . . 1 . . . . . . . 2 . . . Exploded 4 | . . . 2 . . . . 1 . 1 . . 1 4 Melee 1 | . . . . . . . . 1 . . . . . 1 Uniques/NPCs Destroyed . | . . . . . . . . . . . . . . . Combat | -11 -10 -10 -9 -9 -9 -8 -8 -7 -6 -6 -6 -6 -5 -5 -------- Run | Yrd Mat Min Mat Min Exi Min Mat Fac Fac Low Low Dat Pro Fac Hostile Shots Fired 618 | . 23 22 16 2 . . 22 121 87 44 32 . 8 241 Missed 182 | . 3 6 5 1 . . 3 36 31 11 12 . 2 72 Damage Taken 7475 | . 288 127 166 17 . . 302 1203 662 527 247 . 114 3822 Core 1432 | . 35 10 41 . . . 31 180 67 48 6 . . 1014 Absorbed by Shields . | . . . . . . . . . . . . . . . Redirected to Shielding 70 | . 18 . . . . . 4 48 . . . . . . Core Remaining (%) 87 | 100 . 82 . . . 89 94 74 . . . . 85 . Volleys Fired 149 | . 23 4 10 3 . . 12 25 19 19 10 . 9 15 Largest 3 | . 2 2 2 2 . . 2 3 3 3 3 . 3 2 Hottest 172 | . 110 70 70 70 . . 80 172 104 104 138 . 138 80 Shots Fired 305 | . 44 8 17 6 . . 20 58 52 40 30 . 13 17 Gun 221 | . 29 8 16 6 . . 18 35 38 32 24 . 8 7 Cannon 57 | . 13 . . . . . . 20 14 4 6 . . . Launcher 27 | . 2 . 1 . . . 2 3 . 4 . . 5 10 Special . | . . . . . . . . . . . . . . . Kinetic 189 | . . 4 7 3 . . 15 36 52 36 26 . 6 4 Thermal 89 | . 42 4 9 3 . . 3 19 . . 4 . 2 3 Explosive 27 | . 2 . 1 . . . 2 3 . 4 . . 5 10 Electromagnetic . | . . . . . . . . . . . . . . . Robot Hit Streak 17 | . 9 1 3 3 . . 7 17 13 7 5 . 4 2 Robot Miss Streak 4 | . 3 2 2 1 . . 2 3 2 2 2 . 4 3 Penetration Max 1 | . . . . . . . . . 1 . 1 . . . Secondary Targets 3 | . . . 1 . . . . . . . 2 . . . Max Gunslinging Chain 2 | . . . 1 . . . . . . . 2 . . . Shots Hit Robots 260 | . 31 3 9 5 . . 15 43 39 31 19 . 6 59 Core Hits 140 | . 18 1 11 3 . . 8 26 14 10 13 . 6 30 Critical Kills 2 | . . . . . . . . . . . . . . 2 Critical Parts Destroyed 10 | . . . . . . . . . . 1 . . . 9 Critical Strikes 19 | . 3 . . 1 . . . . 1 2 . . . 12 Burn 4 | . 3 . . 1 . . . . . . . . . . Destroy 1 | . . . . . . . . . . 1 . . . . Blast 2 | . . . . . . . . . 1 1 . . . . Smash 11 | . . . . . . . . . . . . . . 11 Sever 1 | . . . . . . . . . . . . . . 1 Melee Attacks 87 | . . . . . . . . 4 4 6 . . . 73 Impact 55 | . . . . . . . . . . 1 . . . 54 Slashing 21 | . . . . . . . . 4 2 5 . . . 10 Piercing 7 | . . . . . . . . . . . . . . 7 Sneak Attacks 16 | . . . . . . . . 1 3 4 . . . 8 Combat Hostiles 3 | . . . . . . . . . 2 . . . . 1 Follow-up Attacks 9 | . . . . . . . . . . . . . . 9 Damage Inflicted 8913 | . 497 51 350 62 . . 334 1450 881 1009 407 . 489 3383 Guns 2653 | . 251 51 129 62 . . 186 565 560 383 319 . 72 75 Cannons 888 | . 194 . . . . . . 311 239 56 88 . . . Explosions 2676 | . 52 . 221 . . . 148 381 . 278 . . 417 1179 Melee 2696 | . . . . . . . . 193 82 292 . . . 2129 Ramming . | . . . . . . . . . . . . . . . Kinetic 2435 | . . 26 54 37 . . 161 487 799 439 329 . 62 41 Thermal 1106 | . 445 25 75 25 . . 25 389 . . 78 . 10 34 Explosive 2676 | . 52 . 221 . . . 148 381 . 278 . . 417 1179 Electromagnetic . | . . . . . . . . . . . . . . . Impact 1686 | . . . . . . . . . . 38 . . . 1648 Slashing 915 | . . . . . . . . 193 82 254 . . . 386 Piercing 95 | . . . . . . . . . . . . . . 95 Highest Corruption 7 | . . . . . . . 1 1 . . . . . 7 Average Corruption 1 | . . . . . . . 1 1 . . . . . 4 Corruption Purged . | . . . . . . . . . . . . . . . Corruption Blocked . | . . . . . . . . . . . . . . . Effects 18 | . . . . . . . 2 7 . . . . . 9 Message Errors 5 | . . . . . . . 1 2 . . . . . 2 Matter Fused 2 | . . . . . . . . 2 . . . . . . Heat Flow Errors 2 | . . . . . . . . . . . . . . 2 Energy Discharges 2 | . . . . . . . . 1 . . . . . 1 Parts Rejected 1 | . . . . . . . . . . . . . . 1 Data Loss (minor) 3 | . . . . . . . . . . . . . . 3 Data Loss (major) 1 | . . . . . . . . 1 . . . . . . Alerts 2 | . . . . . . . 1 1 . . . . . . Overload Shots . | . . . . . . . . . . . . . . . Overflow Damage 1007 | . . . 5 . . . . 110 . 200 . . . 692 Projectiles 9 | . . . . . . . . 9 . . . . . . Explosions 78 | . . . 5 . . . . 47 . . . . . 26 Melee 920 | . . . . . . . . 54 . 200 . . . 666 Knockbacks 18 | . . . . . . . . 4 3 1 1 . . 9 Impact 8 | . . . . . . . . . . . . . . 8 Kinetic 9 | . . . . . . . . 4 3 1 1 . . . Secondary 1 | . . . . . . . . . . . . . . 1 Self-Inflicted Damage 200 | . . . 20 . . . . 93 . . . . . 87 Shots 5 | . . . 1 . . . . 2 . . . . . 2 Rammed . | . . . . . . . . . . . . . . . Targets Rammed . | . . . . . . . . . . . . . . . Kicked . | . . . . . . . . . . . . . . . Crushed . | . . . . . . . . . . . . . . . Highest Temperature 330 | . 288 27 57 36 . . 9 330 124 . . . 51 246 Average Temperature 74 | . 104 12 19 21 . . 6 88 51 . . . 27 109 Received Heat Transfer 1284 | . 162 . 63 9 . . 18 165 72 138 33 . 48 576 Effects 6 | . 2 . . . . . . 4 . . . . . . Energy Bleed 1 | . . . . . . . . 1 . . . . . . Interference 5 | . 2 . . . . . . 3 . . . . . . Siege Activations . | . . . . . . . . . . . . . . . Robots Corrupted . | . . . . . . . . . . . . . . . Combat Hostiles . | . . . . . . . . . . . . . . . Parts Fried 14 | . . . . . . . . 1 . 2 . . . 11 Impact Corruptions 26 | . . . . . . . . . . 2 . . . 24 Robots Melted 1 | . . . . . . . . 1 . . . . . . Combat Hostiles 1 | . . . . . . . . 1 . . . . . . Parts Melted 13 | . 5 . 1 2 . . . 2 . . 3 . . . Heat Transferred 3012 | . 1369 74 222 148 . . 74 850 . . 175 . 25 75 Parts Sabotaged . | . . . . . . . . . . . . . . . Parts Stolen . | . . . . . . . . . . . . . . . Parts Stripped . | . . . . . . . . . . . . . . . Power Chain Reactions . | . . . . . . . . . . . . . . . Alert | -11 -10 -10 -9 -9 -9 -8 -8 -7 -6 -6 -6 -6 -5 -5 ------- Run | Yrd Mat Min Mat Min Exi Min Mat Fac Fac Low Low Dat Pro Fac Peak Influence 665 | . 182 121 365 298 . . 176 529 363 . . . . 665 Initial 450 | . . . 46 142 . . . 79 203 . . . . 450 Average 229 | . 62 45 136 262 . . 43 212 241 . . . . 539 Maximum Alert Level 2 | . . . 1 1 . . . 2 1 . . . . 2 Low Security (%) 58 | 100 100 100 84 5 . 100 100 63 9 . . . . . Level 1 8 | . . . 15 94 . . . 2 90 . . . . 4 Level 2 32 | . . . . . . . . 33 . . . . . 95 Level 3 . | . . . . . . . . . . . . . . . Level 4 . | . . . . . . . . . . . . . . . Level 5 . | . . . . . . . . . . . . . . . High Security . | . . . . . . . . . . . . . . . Max Security . | . . . . . . . . . . . . . . . Squads Dispatched 15 | . . . . . . . . 7 3 . . . . 5 Investigation 3 | . . . . . . . . 1 . . . . . 2 Extermination 6 | . . . . . . . . 3 1 . . . . 2 Reinforcement 2 | . . . . . . . . . 1 . . . . 1 Assault . | . . . . . . . . . . . . . . . Garrison 4 | . . . . . . . . 3 1 . . . . . Intercept . | . . . . . . . . . . . . . . . Searches Triggered 1 | . . . . . . . . . . . . . . 1 Construction Impeded . | . . . . . . . . . . . . . . . Haulers Reinforced . | . . . . . . . . . . . . . . . Active Scanning Responses . | . . . . . . . . . . . . . . . Cargo Convoy Interrupts . | . . . . . . . . . . . . . . . Stealth | -11 -10 -10 -9 -9 -9 -8 -8 -7 -6 -6 -6 -6 -5 -5 --------- Run | Yrd Mat Min Mat Min Exi Min Mat Fac Fac Low Low Dat Pro Fac Distress Signals 8 | . 1 . 1 . . . 2 2 . . . . . 2 Communications Jammed . | . . . . . . . . . . . . . . . Distress Signals . | . . . . . . . . . . . . . . . Times Spotted 142 | . 10 5 12 5 . . 9 23 5 12 11 . 6 44 Peak Tracking Total 10 | . 3 3 5 3 . . 4 7 3 3 4 . 3 10 Tactical Retreats 15 | . . 1 . . . . 2 2 . 6 1 . . 3 Traps | -11 -10 -10 -9 -9 -9 -8 -8 -7 -6 -6 -6 -6 -5 -5 ------- Run | Yrd Mat Min Mat Min Exi Min Mat Fac Fac Low Low Dat Pro Fac Traps Triggered 9 | . . . . . . . 1 3 . . . . . 5 Indirectly . | . . . . . . . . . . . . . . . Trap Hack Attempts . | . . . . . . . . . . . . . . . Triggered . | . . . . . . . . . . . . . . . Disarmed . | . . . . . . . . . . . . . . . Reprogrammed . | . . . . . . . . . . . . . . . Reused 11 | . . . . . . . 2 2 . 2 2 . . 3 Traps Reconfigurated 30 | . . . . . . . 1 14 1 . . . . 14 Traps Extracted . | . . . . . . . . . . . . . . . Installed 7 | . . 1 . . . . 2 . . 2 2 . . . Triggered 13 | . . . . . . . 2 2 . 4 2 . . 3 Most Traps Carried 4 | . . 2 2 2 2 2 2 . . 4 2 . . . Machines | -11 -10 -10 -9 -9 -9 -8 -8 -7 -6 -6 -6 -6 -5 -5 ---------- Run | Yrd Mat Min Mat Min Exi Min Mat Fac Fac Low Low Dat Pro Fac Machines Disabled 24 | . 1 . . . . . . 17 . . . . . 6 Max in Single Turn 10 | . 1 . . . . . . 10 . . . . . 4 Garrison Access 1 | . . . . . . . . . . . . . . 1 Machines Repaired . | . . . . . . . . . . . . . . . Machines Dismantled . | . . . . . . . . . . . . . . . Machines Sabotaged . | . . . . . . . . . . . . . . . Overloaded Fab Kills . | . . . . . . . . . . . . . . . Hacking | -11 -10 -10 -9 -9 -9 -8 -8 -7 -6 -6 -6 -6 -5 -5 --------- Run | Yrd Mat Min Mat Min Exi Min Mat Fac Fac Low Low Dat Pro Fac Machines Accessed 24 | . 6 . 1 . 1 . 1 5 2 2 1 2 . 3 Terminals 13 | . 5 . 1 . . . 1 3 2 . . . . 1 Fabricators 2 | . . . . . . . . 1 . . . . . 1 Repair Stations . | . . . . . . . . . . . . . . . Recycling Units 1 | . 1 . . . . . . . . . . . . . Scanalyzers . | . . . . . . . . . . . . . . . Garrison Access 2 | . . . . . . . . 1 . . . . . 1 Total Hacks 57 | . 12 . 1 . 1 . 1 7 4 3 1 20 . 7 Successful 42 | . 7 . 1 . 1 . 1 3 3 3 1 20 . 2 Failed 15 | . 5 . . . . . . 4 1 . . . . 5 Catastrophic 3 | . . . . . . . . 2 . . . . . 1 Database Lockouts . | . . . . . . . . . . . . . . . Manual 1 | . . . . . 1 . . . . . . . . . Terminals 23 | . 11 . 1 . . . 1 4 4 . . . . 2 Fabricators 4 | . . . . . . . . 2 . . . . . 2 Repair Stations . | . . . . . . . . . . . . . . . Recycling Units 1 | . 1 . . . . . . . . . . . . . Scanalyzers . | . . . . . . . . . . . . . . . Garrison Access 4 | . . . . . . . . 1 . . . . . 3 Terminal Hacks 38 | . 6 . 1 . 1 . 1 2 3 3 1 20 . . Record 2 | . . . . . . . . . . 2 . . . . Part Schematic 12 | . . . . . . . . . . . . 12 . . Robot Schematic 5 | . . . . . . . . . . . . 5 . . Robot Analysis 2 | . 1 . . . . . . . 1 . . . . . Prototype ID Bank 3 | . . . . . . . . . . . . 3 . . Open Door 2 | . . . . . . . . . . 1 1 . . . Emergency Access Points 3 | . . . . . . . . 2 1 . . . . . Locate Traps 4 | . 3 . 1 . . . . . . . . . . . Zone Layout 4 | . 2 . . . . . 1 . 1 . . . . . Derelict Proto ID Bank 1 | . . . . . 1 . . . . . . . . . Fabricator Hacks 2 | . . . . . . . . 1 . . . . . 1 Load Schematic 1 | . . . . . . . . . . . . . . 1 Build 1 | . . . . . . . . 1 . . . . . . Repair Station Hacks . | . . . . . . . . . . . . . . . Recycling Unit Hacks 1 | . 1 . . . . . . . . . . . . . Report Inventory 1 | . 1 . . . . . . . . . . . . . Scanalyzer . | . . . . . . . . . . . . . . . Garrison Access Hacks 1 | . . . . . . . . . . . . . . 1 Seal Access 1 | . . . . . . . . . . . . . . 1 Unauthorized Hacks . | . . . . . . . . . . . . . . . Terminals . | . . . . . . . . . . . . . . . Fabricators . | . . . . . . . . . . . . . . . Repair Stations . | . . . . . . . . . . . . . . . Recycling Units . | . . . . . . . . . . . . . . . Scanalyzers . | . . . . . . . . . . . . . . . Garrison Access . | . . . . . . . . . . . . . . . Data Cores Recovered 1 | . . . . . . . . 1 . . . . . . Used . | . . . . . . . . . . . . . . . Hacking Detections 14 | . 4 . . . . . 1 4 2 . . . . 3 Full Trace Events 1 | . . . . . . . . . . . . . . 1 Feedback Events . | . . . . . . . . . . . . . . . Feedback Blocked . | . . . . . . . . . . . . . . . Robot Schematics Acquired 5 | . . . . . . . . . . . . 5 . . Robots Built 4 | . . . . . . . . 4 . . . . . . Authchips . | . . . . . . . . . . . . . . . Time 134 | . . . . . . . . 134 . . . . . . Total Robot Build Rating 16 | . . . . . . . . 16 . . . . . . Part Schematics Acquired 12 | . . . . . . . . . . . . 12 . . Parts Built . | . . . . . . . . . . . . . . . Authchips . | . . . . . . . . . . . . . . . Time . | . . . . . . . . . . . . . . . Total Part Build Rating . | . . . . . . . . . . . . . . . Parts Repaired . | . . . . . . . . . . . . . . . Time . | . . . . . . . . . . . . . . . Parts Recycled . | . . . . . . . . . . . . . . . Recycled Matter . | . . . . . . . . . . . . . . . Retrieved Matter . | . . . . . . . . . . . . . . . Retrieved Components . | . . . . . . . . . . . . . . . Parts Scanalyzed . | . . . . . . . . . . . . . . . Part Schematics Acquired . | . . . . . . . . . . . . . . . Parts Damaged . | . . . . . . . . . . . . . . . Bothacking | -11 -10 -10 -9 -9 -9 -8 -8 -7 -6 -6 -6 -6 -5 -5 ------------ Run | Yrd Mat Min Mat Min Exi Min Mat Fac Fac Low Low Dat Pro Fac Used RIF Installer . | . . . . . . . . . . . . . . . Robots Hacked 1 | . . . . . . . . . . . . . . 1 Non-combat 1 | . . . . . . . . . . . . . . 1 Combat . | . . . . . . . . . . . . . . . Robot Hacks Applied 1 | . . . . . . . . . . . . . . 1 find_recycling 1 | . . . . . . . . . . . . . . 1 Relay Couplers Released . | . . . . . . . . . . . . . . . Fabnet Peak Effective % . | . . . . . . . . . . . . . . . Robots Rewired 3 | . . . . . . . . . 1 . . . . 2 Allies Hacked 1 | . . . . . . . . 1 . . . . . . Hacks Repelled . | . . . . . . . . . . . . . . . Allies | -11 -10 -10 -9 -9 -9 -8 -8 -7 -6 -6 -6 -6 -5 -5 -------- Run | Yrd Mat Min Mat Min Exi Min Mat Fac Fac Low Low Dat Pro Fac Total Allies 12 | . . 5 . . . . . 4 1 . . . . 2 Largest Group 5 | . . 5 5 5 5 3 3 4 1 . . . . 1 Highest-Rated Group 89 | . . 89 89 89 89 40 40 48 40 . . . . 30 Highest-Rated Ally 40 | . . 31 31 31 31 16 16 12 40 . . . . 30 Total Orders . | . . . . . . . . . . . . . . . Ally Attacks 97 | . . 7 44 22 . . 9 6 . . . . . 9 Total Damage 1045 | . . 24 560 259 . . 52 48 . . . . . 102 Kills 13 | . . 2 7 3 . . . . . . . . . 1 Allies Corrupted . | . . . . . . . . . . . . . . . Allies Melted 1 | . . . . . . . . . . . . . . 1 Intel | -11 -10 -10 -9 -9 -9 -8 -8 -7 -6 -6 -6 -6 -5 -5 ------- Run | Yrd Mat Min Mat Min Exi Min Mat Fac Fac Low Low Dat Pro Fac Robot Analysis Total 2 | . 1 . . . . . . . 1 . . . . . Derelict Logs Recovered 6 | . . 2 . 1 . . . . . 2 1 . . . Drone Launches . | . . . . . . . . . . . . . . . Drone Recoveries . | . . . . . . . . . . . . . . . Exploration | -11 -10 -10 -9 -9 -9 -8 -8 -7 -6 -6 -6 -6 -5 -5 ------------- Run | Yrd Mat Min Mat Min Exi Min Mat Fac Fac Low Low Dat Pro Fac Turns Passed 9864 | 35 851 753 318 117 435 165 393 2001 326 1757 709 87 434 1483 Spaces Moved 6851 | 30 673 403 219 93 429 166 329 1267 216 1322 546 76 276 806 Core 110 | 4 . . . . . . . . . . . . . 106 Treads 239 | . . . . . . . . . . . . . . 239 Legs 961 | . 418 403 32 . . . . . . . . . . 108 Wheels 5541 | 26 255 . 187 93 429 166 329 1267 216 1322 546 76 276 353 Hover . | . . . . . . . . . . . . . . . Flight . | . . . . . . . . . . . . . . . Fastest Speed 50 | 50 80 120 100 100 100 100 90 93 93 98 115 115 115 50 Average Speed 114 | 76 104 178 113 100 100 100 95 105 94 113 115 115 144 124 Slowest Speed 550 | 80 190 190 190 100 100 100 100 135 108 140 140 115 150 550 Overloaded Moves . | . . . . . . . . . . . . . . . Propulsion Burnouts . | . . . . . . . . . . . . . . . Robots Hopped . | . . . . . . . . . . . . . . . Cave-ins Triggered . | . . . . . . . . . . . . . . . Exploration Rate (%) 50 | 2 87 88 35 35 88 47 24 35 10 95 73 68 49 21 Regions Visited 14 Branch Regions 8 Pre-discovered Areas 2 | . . 1 . . . . . . . . 1 . . . Known Exits Taken 8 | . 1 1 1 1 1 1 1 1 . . . . . . Unknown Exits Taken 6 | 1 . . . . . . . . 1 1 1 1 1 . Scrap Searched 15 | . . 3 . 1 . . . . . 8 3 . . . Spaces Dug 58 | . 7 . . . . . . . 1 . . . . 50 Terrain Destroyed 313 | . 15 . 10 . . . 15 47 6 65 3 . 43 109 Melee 4 | . . . . . . . . . 1 . . . . 3 Projectile 14 | . . . . . . . . . 5 6 3 . . . AOE 295 | . 15 . 10 . . . 15 47 . 59 . . 43 106 Terrain Rammed . | . . . . . . . . . . . . . . . Walls Destroyed . | . . . . . . . . . . . . . . . Machines Disabled . | . . . . . . . . . . . . . . . Actions | -11 -10 -10 -9 -9 -9 -8 -8 -7 -6 -6 -6 -6 -5 -5 --------- Run | Yrd Mat Min Mat Min Exi Min Mat Fac Fac Low Low Dat Pro Fac Total 8471 | 42 773 432 272 110 435 165 394 1880 292 1531 602 75 299 1169 Wait 1136 | . 43 16 28 14 6 . 29 540 31 165 32 . 14 218 Move 6837 | 29 672 402 218 92 428 165 328 1266 215 1321 545 75 275 806 Hop . | . . . . . . . . . . . . . . . Pick Up 83 | 7 15 5 7 . 1 . 7 12 6 6 6 . . 11 Fast Attach 20 | . 2 . . . . . 1 2 3 . 1 . . 11 Attach 50 | 6 2 . 4 . . . 2 8 3 5 4 . . 16 Detach 2 | . . . . . . . . . . . . . . 2 Swap 42 | . 8 1 2 1 . . 5 5 6 6 . . 1 7 Drop 52 | . 8 3 3 . . . 8 10 5 2 2 . . 11 Fire 149 | . 23 4 10 3 . . 12 25 19 19 10 . 9 15 Melee 68 | . . . . . . . . 4 4 5 . . . 55 Ram . | . . . . . . . . . . . . . . . Kick . | . . . . . . . . . . . . . . . Crush . | . . . . . . . . . . . . . . . Escape Stasis 11 | . . . . . . . . 8 . . . . . 3 Rewire 14 | . . . . . . . . . . . . . . 14 Trap 7 | . . 1 . . . . 2 . . 2 2 . . . Miscellaneous . | . . . . . . . . . . . . . . . Route ------- -11/Scrapyard -10/Materials (discovered 4 exits: *Mat x3 / *Min) -10/Mines (discovered 3 exits: *Mat x2 / Sub) -9/Materials (discovered 2 exits: *Mat / *Min) -9/Mines (discovered 2 exits: *Mat / *Exi) -9/Exiles -8/Mines -8/Materials -7/Factory -6/Factory -6/Lower Caves -6/Lower Caves (discovered 2 exits: *Fac / *Dat) -6/Data Miner -5/Proximity Caves -5/Factory History --------- Turn | Location | Event 15 | -11/Scrapyard | Discovered new exit (range 15) 36 | -11/Scrapyard | Entered Materials 239 | -10/Materials | Discovered new exit (range 7) 314 | -10/Materials | Build established: Mutant 500 | -10/Materials | Identified exit to Materials 592 | -10/Materials | Discovered exit to Materials (range 13) 768 | -10/Materials | Discovered exit to Materials (range 12) 840 | -10/Materials | Discovered new exit (range 13) 886 | -10/Materials | Identified exit to Mines 887 | -10/Materials | Entered Mines 930 | -10/Mines | Assisted by bots powering up and referring to "LRC-V3" 956 | -10/Mines | Found a hidden stash of uninstalled traps 1046 | -10/Mines | Learned location of Zion (-7) 1338 | -10/Mines | Discovered exit to Materials (range 8) 1351 | -10/Mines | Discovered exit to Materials (range 12) 1395 | -10/Mines | Identified exit to Subcaves 1640 | -10/Mines | Entered Materials 1640 | -9/Materials | Accompanied by 5 allies 1640 | -9/Materials | Evolved 2 slots: Utility x2 1645 | -9/Materials | Led the pair of lost Derelicts to an unsafe place 1880 | -9/Materials | Discovered new exit (range 4) 1882 | -9/Materials | Identified exit to Materials 1943 | -9/Materials | Discovered new exit (range 6) 1948 | -9/Materials | Identified exit to Mines 1958 | -9/Materials | Entered Mines 1958 | -9/Mines | Accompanied by 5 allies 2032 | -9/Mines | Discovered exit to Materials (range 11) 2038 | -9/Mines | Identified exit to Exiles 2056 | -9/Mines | Deemed a non-threat by the Exiles lab entrance 2075 | -9/Mines | Entered Exiles 2075 | -9/Exiles | Accompanied by 5 allies 2099 | -9/Exiles | Met 8R-AWN 2105 | -9/Exiles | Led the pair of lost Derelicts to a safe place 2116 | -9/Exiles | Met EX-HEX 2155 | -9/Exiles | Met EX-DEC 2191 | -9/Exiles | Visited The Gauntlet 2325 | -9/Exiles | Met EX-BIN 2336 | -9/Exiles | Aligned with FarCom system 2337 | -9/Exiles | Given EX-Vault access code 2360 | -9/Exiles | Opened EX-Vault 2367 | -9/Exiles | Found Trap Reconfigurator 2387 | -9/Exiles | Warned to stay clear of 0b10 Research branches 2492 | -9/Exiles | Discovered new exit (range 12) 2503 | -9/Exiles | Identified exit to Mines 2510 | -9/Exiles | Left Exiles lab with Trap Reconfigurator 2510 | -9/Exiles | Entered Mines 2510 | -8/Mines | Accompanied by 3 allies 2664 | -8/Mines | Discovered exit to Materials (range 5) 2675 | -8/Mines | Entered Materials 2675 | -8/Materials | Accompanied by 3 allies 2675 | -8/Materials | Evolved 2 slots: Propulsion x1, Utility x1 2873 | -8/Materials | Lost 3 allies 3057 | -8/Materials | Discovered new exit (range 13) 3067 | -8/Materials | Identified exit to Factory 3068 | -8/Materials | Entered Factory 3068 | -7/Factory | Evolved 2 slots: Utility x1, Weapon x1 3289 | -7/Factory | Fabricated S-27 Virus? 3433 | -7/Factory | Lost 4 allies 3702 | -7/Factory | Build established: Tank 4688 | -7/Factory | Build established: Mutant 5064 | -7/Factory | Discovered new exit (range 5) 5068 | -7/Factory | Identified exit to Factory 5069 | -7/Factory | Entered another Factory area 5069 | -6/Factory | Evolved 2 slots: Propulsion x1, Utility x1 5362 | -6/Factory | Discovered new exit (range 5) 5363 | -6/Factory | Garrison activated, responded to threat 5395 | -6/Factory | Entered Lower Caves 5396 | -6/Lower Caves | Encountered a Warlord checkpoint 5539 | -6/Lower Caves | Learned Factory terminal intel 5629 | -6/Lower Caves | Lost 3 parts (1p2n) 5701 | -6/Lower Caves | Build established: Gunner 6219 | -6/Lower Caves | Build established: Mutant 6408 | -6/Lower Caves | Learned Research security intel 6408 | -6/Lower Caves | Learned Extension terminal intel 6512 | -6/Lower Caves | Attracted the attention of an 0b10 checkpoint 6747 | -6/Lower Caves | Build established: Gunner 7131 | -6/Lower Caves | Discovered new exit (range 15) 7148 | -6/Lower Caves | Learned Factory terminal intel 7152 | -6/Lower Caves | Entered another Lower Caves area 7157 | -6/Lower Caves | Discovered new exit (range 6) 7525 | -6/Lower Caves | Attracted the attention of an 0b10 checkpoint 7703 | -6/Lower Caves | Build established: Scavenger-Gunner 7718 | -6/Lower Caves | Spotted B-75 Beast 7848 | -6/Lower Caves | Discovered new exit (range 13) 7861 | -6/Lower Caves | Entered Data Miner 7861 | -6/Data Miner | Discovered new exit (range 6) 7883 | -6/Data Miner | Met Data Miner 7921 | -6/Data Miner | Received God Mode back door access code from Data Miner 7948 | -6/Data Miner | Entered Proximity Caves 7951 | -5/Proximity Caves | Spotter reported a threat 8070 | -5/Proximity Caves | Spotter reported a threat 8292 | -5/Proximity Caves | Spotter reported a threat 8364 | -5/Proximity Caves | Discovered new exit (range 10) 8382 | -5/Proximity Caves | Entered Factory 8382 | -5/Factory | Evolved 2 slots: Utility x2 8383 | -5/Factory | Loaded intel: 28 terminal locations 8682 | -5/Factory | Search patrols dispatched 8741 | -5/Factory | Destroyed 8 combat bots 8822 | -5/Factory | Build established: Scavenger-Mutant 9000 | -5/Factory | Lost 9 parts (1p4n3u1w) 9403 | -5/Factory | Build established: Gladiator 9721 | -5/Factory | Destroyed 7 combat bots 9757 | -5/Factory | Core integrity fell below 50% 9810 | -5/Factory | Lost 13 parts (2p3n4u4w) 9856 | -5/Factory | Core integrity fell below 20% 9865 | -5/Factory | Destroyed by P-70 Sage with Tesla Rifle Last Messages --------------- 09777_ R-10 Processor collects Med. Matter Pod. 09777_ Dropped Hvy. Treads. 09779_ K-01 Serf collects debris. 09779_ Cryofiber Web destroyed. 09782_ U-05 Engineer builds a Wall. 09807_ Triggered Shock Trap. 09807_ The floor emits a surge of raw power. 09807_ System corrupted (+1). 09808_ System corrupted: Component data lost. 09827_ Acquired Ionic Axe. 09829_ Dropped Mace. 09829_ Acquired Mace. 09835_ Acquired Prototype Power Core. 09836_ Identified Lgt. Neutrino Core. 09846_ Construction Platform disabled. 09849_ Mace destroyed. 09855_ System corrupted: Lgt. Neutrino Core rejected. 09857_ Destroyed Hpw. Shock Rifle. 09859_ P-70 Sage Antigrav System severed. Map ----- +----------------------------------------------------+ | | | | | | | | | | | | | | | | | | | | | | | | | | | | | | | | | ?????????????????????????????????????????????????? | | ?????????????????????????????????????????????????? | | ?????????????????????????????????????????????????? | | ?????????????????????????????????????????????????? | | ?????????????????????????????????????????????????? | | ????????????????##############???????????????????? | | ????????????????# #???????????????????? | | ????????????????# #???????????????????? | | ????????????????# """""" #???????????????????? | | ????????????????? """""""@ #???????????????????? | | ??????????????????"""""" = =#???????????????????? | | ????????????????# """""" p #???????????????????? | | ????????????????# p #???????????????????? | | ????????????????# """"""" #???????????????????? | | ????????????????# """"""" #???????????????????? | | ????????????????? """"""" #???????????????????? | | ????????????????# """"""" / #???????????????????? | | ????????????????# #???????????????????? | | ????????????????#######+######???????????????????? | | ???????????????????# #?????????????????????? | | ???????????????????# #?????????????????????? | | ???????????????????# #?????????????????????? | | ???????????????????# #?????????????????????? | | ???????????????????# #?????????????????????? | | ???????????????????+ +?????????????????????? | | ???????????????????# #?????????????????????? | | ???????????????????# #?????????????????????? | | ???????????????????# #?????????????????????? | | ???????????????????# #?????????????????????? | | ???????????????????# #?????????????????????? | | ???????????????????# #?????????????????????? | | ???????????????????# #?????????????????????? | | ???????????????????# #?????????????????????? | | ???????????????????# #?????????????????????? | +----------------------------------------------------+ Best States ------------- Heat Dissipation 40 Energy Generation 19 Energy Capacity 290 Matter Stores 300 Matter Capacity 300 Sight Range 16 Terrain Scan Density 10 Base Temperature (-) 100 Armor Coverage 450 Propulsion Shielding 33 Evasion (%) 57 Targeting Accuracy 8 Melee Accuracy 5 Recoil Reduction 2 Defensive Hacking 10 Item Schematics ----------------- Combat Drone Bay | -6/Data Miner | Free Lgt. Regenerative Plating | -6/Data Miner | Free Cld. Nuclear Pulse Thruster | -6/Data Miner | Free Imp. Energy Well | -6/Data Miner | Free Ionic Axe | -6/Data Miner | Free Hvy. Siege Treads | -6/Data Miner | Free Imp. Remote Shield | -6/Data Miner | Free Hvy. Disruptor Cannon | -6/Data Miner | Free Hvy. Shock Bomb Launcher | -6/Data Miner | Free Adv. Reaction Control System | -6/Data Miner | Free Particle Reactor | -6/Data Miner | Free Linear Accelerator | -6/Data Miner | Free Robot Schematics ------------------ R-10 Processor | -6/Data Miner | Free A-15 Conveyor | -6/Data Miner | Free B-60 Warrior | -6/Data Miner | Free B-48 Gladiator | -6/Data Miner | Free L-61 Swordsman | -6/Data Miner | Free Fabricated ------------ S-27 Virus | x4 | -7/Factory | Preloaded Alien Tech Used ----------------- None Achievements -------------- Gunslinger Challenges ------------ None Game ------ Seed SalvageWaveWings Manual? 0 Play Time 02:05:43 Cumulative 87.3 hours Start 2024.05.04 @ 11:39:13 End 2024.05.04 @ 14:37:59 Sessions 1 Manual Loads 0 Difficulty Rogue Special Mode None Game No. 72 Rogue 72 Adventurer 0 Explorer 0 Win Type - Total 0 Types 0/0/0/0/0/0/0/0/0 Lore% 47 Gallery% 48 Achievement% 37 Wizard Run 0 Options --------- Layout 2 ASCII 0 Keyboard 0 Movement Mouse Keybinds 0 Fullscreen 1 Font 48/Smallcaps Map View 50x44 Zoom Use 0% Tactical HUD 1 Map Filters NONE Filters NONE Steam 1 RUN: 656422a6-7b64-4e20-bb83-d7fdf203088e